bitfinex/quotes_SOLUSD_20251118
["timestamp","ask_amount","ask_price","bid_price","bid_amount"]
[1763495776785,5.79548742,141.4,141.35,6.47548742]
[1763495776981,4.2,141.41,141.36,6.47548742]
[1763495777209,4.2,141.41,141.37,6.47548742]
[1763495777613,9.99548742,141.41,141.38,0.68]
[1763495777906,5.79548742,141.4,141.38,0.68]
[1763495778292,9.99548742,141.41,141.38,0.68]
[1763495778793,4.2,141.41,141.38,0.68]
[1763495780412,10.69961359,141.41,141.36,0.68]
[1763495780714,5.79548742,141.39,141.35,18.80096]
[1763495780888,5.79548742,141.39,141.36,0.67]
[1763495781409,5.79548742,141.4,141.36,0.67]
[1763495783594,9.99548742,141.41,141.36,0.67]
[1763495784109,5.79548742,141.4,141.36,0.67]
[1763495784307,5.79548742,141.39,141.36,0.67]
[1763495784486,6.49961359,141.4,141.36,0.67]
[1763495786913,2.93010346,141.4,141.36,0.67]
[1763495787098,6.42597729,141.41,141.36,21.01693729]
[1763495787605,6.42597729,141.41,141.37,0.67]
[1763495788301,4.2,141.41,141.37,2.89597729]
[1763495788691,4.2,141.41,141.38,0.67]
[1763495789093,4.2,141.41,141.38,2.89597729]
[1763495789400,0.70412617,141.44,141.39,0.67]
[1763495789401,7.13010346,141.44,141.39,0.67]
[1763495789604,2.22597729,141.43,141.39,0.67]
[1763495793517,2.22597729,141.42,141.39,0.67]
[1763495793717,4.90412617,141.44,141.39,0.67]
[1763495793929,2.22597729,141.43,141.39,0.67]
[1763495796417,2.93010346,141.42,141.37,18.79096]
[1763495796616,2.22597729,141.41,141.36,0.67]
[1763495796918,2.93010346,141.4,141.36,0.67]
[1763495797509,0.70412617,141.4,141.36,0.67]
[1763495798021,2.22597729,141.41,141.36,0.67]
[1763495798422,2.22597729,141.4,141.36,0.67]
[1763495798623,2.22597729,141.38,141.34,0.67]
[1763495798937,2.22597729,141.38,141.35,0.67]
[1763495799718,2.22597729,141.39,141.35,0.67]
[1763495799901,4.2,141.4,141.36,2.22597729]
[1763495800318,4.2,141.4,141.37,0.67]
[1763495800624,0.70412617,141.41,141.37,2.89597729]
[1763495800824,2.22597729,141.46,141.4,2.22597729]
[1763495801004,6.02551782,141.48,141.43,2.22597729]
[1763495801005,6.62597729,141.48,141.43,2.22597729]
[1763495801198,4.4,141.48,141.43,20.34693729]
[1763495801408,4.4,141.48,141.45,2.22597729]
[1763495801707,4.4,141.48,141.44,2.89597729]
[1763495802106,4.4,141.48,141.45,0.67]
[1763495802409,0.2,141.48,141.45,2.89597729]
[1763495802896,0.2,141.48,141.47,2.22597729]
[1763495803300,0.2,141.48,141.47,0.7]
[1763495804019,0.2,141.48,141.47,21.04693729]
[1763495806221,0.2,141.48,141.47,0.7]
[1763495806529,0.2,141.48,141.45,2.92597729]
[1763495806729,0.2,141.48,141.36,8.90390916]
[1763495807022,0.2,141.48,141.43,2.92597729]
[1763495807023,2.42597729,141.48,141.43,2.92597729]
[1763495807211,2.42597729,141.48,141.44,0.7]
[1763495807821,0.2,141.48,141.44,2.92597729]
[1763495808021,0.2,141.48,141.45,0.7]
[1763495808598,0.2,141.48,141.46,2.22597729]
[1763495808820,0.2,141.48,141.47,20.34693729]
[1763495809325,0.2,141.48,141.47,21.04693729]
[1763495810903,0.2,141.48,141.47,24.60767228]
[1763495811632,0.2,141.48,141.47,28.80767228]
[1763495817806,0.2,141.48,141.47,24.60767228]
[1763495818030,0.2,141.48,141.47,28.80767228]
[1763495819616,0.2,141.48,141.47,18.82096]
[1763495819816,0.2,141.48,141.47,0.7]
[1763495820636,0.2,141.48,141.47,6.48671228]
[1763495821418,0.2,141.48,141.47,0.7]
[1763495821624,0.2,141.48,141.47,6.48671228]
[1763495821831,0.2,141.49,141.47,6.48671228]
[1763495822144,0.2,141.49,141.48,10.68671228]
[1763495822568,0.2,141.51,141.5,18.12096]
[1763495822860,0.2,141.54,141.5,23.90767228]
[1763495823034,0.2,141.54,141.53,5.78671228]
[1763495823751,0.8,141.54,141.51,5.78671228]
[1763495824038,5.78671228,141.52,141.47,0.7]
[1763495824218,5.78671228,141.52,141.47,6.48671228]
[1763495824414,6.38671228,141.51,141.47,0.7]
[1763495824662,0.6,141.51,141.47,6.48671228]
[1763495824972,5.78671228,141.52,141.47,6.48671228]
[1763495825155,6.38671228,141.52,141.47,6.48671228]
[1763495825326,0.6,141.52,141.48,6.48671228]
[1763495825667,1.30412617,141.52,141.48,6.48671228]
[1763495825848,1.30412617,141.52,141.46,4.2]
[1763495825849,7.09083845,141.52,141.46,4.9]
[1763495826147,1.30412617,141.52,141.47,6.48671228]
[1763495826934,1.30412617,141.52,141.47,10.37234355]
[1763495827458,9.67234355,141.5,141.44,10.37234355]
[1763495827635,10.27234355,141.49,141.43,14.57234355]
[1763495827832,10.27234355,141.49,141.44,18.12096]
[1763495828042,10.27234355,141.49,141.44,18.82096]
[1763495828734,9.67234355,141.5,141.45,10.37234355]
[1763495828939,0.6,141.52,141.47,9.67234355]
[1763495829248,10.27234355,141.52,141.47,9.67234355]
[1763495829641,0.6,141.51,141.47,0.7]
[1763495830342,9.67234355,141.5,141.46,4.2]
[1763495830757,10.97646972,141.51,141.46,14.57234355]
[1763495830978,10.97646972,141.51,141.47,0.7]
[1763495831137,9.67234355,141.52,141.47,10.37234355]
[1763495831454,9.67234355,141.51,141.47,18.82096]
[1763495831658,9.67234355,141.5,141.46,4.2]
[1763495831861,9.67234355,141.49,141.45,18.12096]
[1763495832064,10.27234355,141.49,141.45,18.82096]
[1763495832560,10.27234355,141.51,141.45,27.79330355]
[1763495832772,4.0730797,141.51,141.46,0.67]
[1763495833238,0.6,141.5,141.46,0.67]
[1763495833739,4.0730797,141.5,141.46,0.67]
[1763495833953,3.4730797,141.49,141.44,8.3430797]
[1763495834140,3.4730797,141.47,141.42,3.4730797]
[1763495834343,3.4730797,141.43,141.33,3.68973532]
[1763495834542,3.4730797,141.43,141.38,4.1430797]
[1763495834748,3.4730797,141.43,141.38,0.67]
[1763495834946,10.286054,141.43,141.38,10.356054]
[1763495835455,10.286054,141.43,141.38,0.67]
[1763495835765,10.286054,141.42,141.37,32.007014]
[1763495835961,10.286054,141.42,141.37,4.2]
[1763495836150,0.6,141.41,141.37,4.2]
[1763495836547,9.686054,141.42,141.38,0.67]
[1763495836851,10.286054,141.42,141.37,14.556054]
[1763495837162,0.6,141.44,141.38,10.356054]
[1763495837483,10.286054,141.44,141.39,27.807014]
[1763495837668,0.6,141.44,141.4,9.686054]
[1763495837868,0.6,141.44,141.4,10.356054]
[1763495838048,0.6,141.44,141.4,14.556054]
[1763495838361,10.286054,141.44,141.4,4.87]
[1763495838564,10.286054,141.44,141.4,4.2]
[1763495838866,10.286054,141.44,141.4,4.87]
[1763495839669,10.286054,141.44,141.4,0.67]
[1763495839977,9.686054,141.45,141.41,4.87]
[1763495840166,9.686054,141.45,141.41,0.67]
[1763495840365,10.39018017,141.46,141.41,9.686054]
[1763495840540,10.99018017,141.46,141.41,9.686054]
[1763495840744,0.6,141.45,141.42,4.2]
[1763495841064,10.39018017,141.46,141.42,4.2]
[1763495841264,10.99018017,141.46,141.42,4.2]
[1763495841470,10.99018017,141.46,141.42,0.66]
[1763495841659,10.99018017,141.46,141.43,4.2]
[1763495841972,10.99018017,141.46,141.42,4.86]
[1763495842158,9.686054,141.45,141.42,4.86]
[1763495842476,10.286054,141.46,141.43,4.2]
[1763495842857,9.686054,141.44,141.39,18.78096]
[1763495843174,10.286054,141.43,141.39,18.78096]
[1763495843371,9.686054,141.44,141.4,4.2]
[1763495843574,9.686054,141.44,141.39,28.467014]
[1763495843873,10.286054,141.44,141.4,4.86]
[1763495844072,9.686054,141.44,141.4,4.86]
[1763495844276,9.686054,141.45,141.41,0.66]
[1763495844454,9.686054,141.45,141.41,4.86]
[1763495844651,0.6,141.45,141.41,14.546054]
[1763495844962,10.39018017,141.46,141.42,0.66]
[1763495845150,10.99018017,141.46,141.42,0.66]
[1763495845352,10.99018017,141.46,141.43,4.2]
[1763495845672,0.6,141.45,141.43,4.2]
[1763495845854,10.286054,141.45,141.43,4.2]
[1763495846256,10.39018017,141.46,141.43,4.2]
[1763495846455,10.99018017,141.46,141.43,4.2]
[1763495847082,10.99018017,141.46,141.41,0.66]
[1763495847377,10.99018017,141.46,141.42,0.66]
[1763495847582,10.99018017,141.46,141.43,4.2]
[1763495848771,10.99018017,141.46,141.42,0.66]
[1763495848974,10.99018017,141.46,141.44,4.2]
[1763495849168,1.30412617,141.46,141.42,0.66]
[1763495849362,1.30412617,141.46,141.43,4.2]
[1763495849363,9.686054,141.46,141.43,4.2]
[1763495849680,10.49295386,141.49,141.44,9.686054]
[1763495849681,9.686054,141.49,141.44,9.686054]
[1763495849850,10.286054,141.5,141.45,9.686054]
[1763495850056,9.686054,141.49,141.45,0.66]
[1763495850271,10.286054,141.49,141.45,0.66]
[1763495850579,10.39018017,141.51,141.46,14.546054]
[1763495850961,10.99018017,141.51,141.47,0.66]
[1763495851277,10.99018017,141.51,141.48,4.2]
[1763495851664,10.99018017,141.51,141.47,0.66]
[1763495851874,9.686054,141.49,141.44,0.66]
[1763495852066,9.686054,141.46,141.43,4.2]
[1763495852455,9.686054,141.47,141.43,4.86]
[1763495853477,9.686054,141.49,141.44,14.546054]
[1763495853683,10.99018017,141.5,141.45,9.686054]
[1763495853861,10.99018017,141.5,141.45,10.346054]
[1763495854066,10.99018017,141.5,141.46,0.66]
[1763495854281,10.99018017,141.5,141.47,4.2]
[1763495856890,4.77751445,141.5,141.47,4.2]
[1763495857066,4.07338828,141.49,141.47,4.2]
[1763495857266,3.47338828,141.48,141.46,4.2]
[1763495858099,3.47338828,141.49,141.46,4.2]
[1763495858386,0.6,141.5,141.46,4.86]
[1763495858576,4.07338828,141.5,141.46,4.86]
[1763495860061,4.17751445,141.49,141.46,4.2]
[1763495860274,4.17751445,141.49,141.46,4.86]
[1763495861076,1.30412617,141.5,141.46,8.33338828]
[1763495861403,4.17751445,141.51,141.47,0.66]
[1763495861566,0.70412617,141.51,141.47,4.13338828]
[1763495861763,4.17751445,141.51,141.48,4.2]
[1763495862097,3.47338828,141.49,141.37,61.8]
[1763495862263,1.30412617,141.48,141.43,3.47338828]
[1763495862466,3.47338828,141.47,141.44,4.2]
[1763495862676,4.07338828,141.47,141.44,4.2]
[1763495863273,3.47338828,141.47,141.44,4.2]
[1763495863472,3.47338828,141.47,141.43,4.2]
[1763495863682,4.07338828,141.47,141.43,4.88]
[1763495863895,3.47338828,141.47,141.43,4.2]
[1763495864084,3.47338828,141.47,141.43,4.88]
[1763495864690,0.6,141.46,141.42,4.2]
[1763495864870,4.77751445,141.47,141.43,0.68]
[1763495865974,4.77751445,141.48,141.43,4.15338828]
[1763495867078,4.77751445,141.48,141.44,0.68]
[1763495867674,3.47338828,141.47,141.42,25.79434828]
[1763495867873,3.47338828,141.47,141.43,0.68]
[1763495868272,1.30412617,141.48,141.43,4.15338828]
[1763495868490,4.17751445,141.48,141.43,4.15338828]
[1763495868703,9.78882769,141.51,141.46,3.47338828]
[1763495868993,3.47338828,141.5,141.46,4.2]
[1763495869288,4.07338828,141.5,141.46,4.2]
[1763495869494,3.47338828,141.49,141.46,4.2]
[1763495869698,4.77751445,141.49,141.46,4.2]
[1763495870008,4.07338828,141.48,141.46,4.2]
[1763495870574,3.47338828,141.48,141.44,22.32096]
[1763495870781,0.6,141.48,141.44,4.88]
[1763495870981,4.07338828,141.49,141.44,4.88]
[1763495871184,4.07338828,141.49,141.44,8.35338828]
[1763495871390,4.17751445,141.5,141.45,4.15338828]
[1763495871879,4.77751445,141.5,141.46,0.68]
[1763495872481,4.77751445,141.5,141.46,4.15338828]
[1763495872482,0.70412617,141.5,141.46,4.15338828]
[1763495872696,1.30412617,141.5,141.46,4.15338828]
[1763495873002,4.77751445,141.5,141.46,0.68]
[1763495874197,4.17751445,141.5,141.46,0.68]
[1763495875574,0.70412617,141.5,141.46,4.15338828]
[1763495875974,0.70412617,141.5,141.46,3.47338828]
[1763495876198,4.17751445,141.5,141.47,0.68]
[1763495876404,4.07338828,141.51,141.47,0.68]
[1763495876608,4.77751445,141.51,141.47,0.68]
[1763495877398,3.47338828,141.5,141.47,0.68]
[1763495879508,4.77751445,141.51,141.47,0.68]
[1763495880779,0.70412617,141.53,141.47,4.15338828]
[1763495881105,0.70412617,141.53,141.48,3.47338828]
[1763495881106,4.17751445,141.53,141.48,3.47338828]
[1763495881288,4.77751445,141.53,141.49,0.68]
[1763495882304,0.2,141.54,141.51,3.47338828]
[1763495882689,0.2,141.54,141.52,0.68]
[1763495883379,4.97751445,141.54,141.5,18.12096]
[1763495883584,3.47338828,141.52,141.47,4.15338828]
[1763495883880,3.47338828,141.5,141.45,4.2]
[1763495884091,3.47338828,141.5,141.46,18.80096]
[1763495884292,4.17751445,141.51,141.46,22.27434828]
[1763495884486,4.77751445,141.52,141.47,4.15338828]
[1763495884712,3.47338828,141.53,141.48,21.59434828]
[1763495884892,4.37751445,141.54,141.49,3.47338828]
[1763495885081,8.27751445,141.55,141.5,4.15338828]
[1763495885485,8.87751445,141.55,141.51,0.68]
[1763495886714,4.07338828,141.54,141.49,4.2]
[1763495887008,3.47338828,141.54,141.51,0.68]
[1763495887212,3.47338828,141.54,141.49,7.67338828]
[1763495887213,4.77751445,141.54,141.5,0.68]
[1763495887717,4.17751445,141.54,141.5,0.68]
[1763495887903,3.47338828,141.52,141.48,18.12096]
[1763495888220,4.17751445,141.52,141.47,4.15338828]
[1763495888591,4.17751445,141.52,141.47,3.47338828]
[1763495888790,1.30412617,141.54,141.48,2.90206733]
[1763495889011,2.22206733,141.53,141.48,2.90206733]
[1763495889310,2.82206733,141.53,141.49,0.68]
[1763495889898,2.9261935,141.54,141.49,2.90206733]
[1763495890217,0.70412617,141.54,141.5,2.22206733]
[1763495890417,0.70412617,141.54,141.5,2.90206733]
[1763495890716,0.70412617,141.54,141.51,0.68]
[1763495891014,3.1261935,141.56,141.51,2.90206733]
[1763495891224,2.82206733,141.55,141.49,2.90206733]
[1763495891518,2.82206733,141.55,141.5,2.22206733]
[1763495891822,3.5261935,141.54,141.48,21.02302733]
[1763495892028,2.22206733,141.53,141.48,25.22302733]
[1763495892208,2.22206733,141.53,141.49,0.65]
[1763495892403,2.9261935,141.54,141.49,2.87206733]
[1763495892611,0.70412617,141.55,141.5,2.22206733]
[1763495892819,0.70412617,141.55,141.5,2.87206733]
[1763495892999,1.30412617,141.55,141.51,0.65]
[1763495893335,3.5261935,141.55,141.51,0.65]
[1763495893628,1.30412617,141.55,141.51,0.65]
[1763495895234,0.70412617,141.55,141.51,0.65]
[1763495895412,0.2,141.56,141.52,2.22206733]
[1763495895610,0.2,141.56,141.53,2.22206733]
[1763495895928,0.2,141.56,141.53,0.65]
[1763495896425,3.02206733,141.56,141.51,2.87206733]
[1763495896624,2.9261935,141.55,141.51,0.65]
[1763495896810,2.22206733,141.54,141.47,4.8]
[1763495897013,2.82206733,141.54,141.49,2.22206733]
[1763495897412,2.82206733,141.54,141.5,0.65]
[1763495899725,2.22206733,141.54,141.5,0.65]
[1763495899928,0.70412617,141.54,141.5,2.87206733]
[1763495900336,0.70412617,141.54,141.51,0.65]
[1763495901619,3.5261935,141.54,141.49,2.88206733]
[1763495901908,0.70412617,141.54,141.49,2.88206733]
[1763495902114,0.70412617,141.54,141.5,0.66]
[1763495902424,2.22206733,141.55,141.5,2.88206733]
[1763495902723,0.6,141.55,141.51,2.22206733]
[1763495902915,3.1261935,141.56,141.51,2.88206733]
[1763495903123,3.7261935,141.56,141.52,0.66]
[1763495903730,2.82206733,141.55,141.5,2.88206733]
[1763495904235,0.70412617,141.54,141.51,0.66]
[1763495904438,3.5261935,141.54,141.49,0.66]
[1763495904746,2.22206733,141.51,141.48,18.12096]
[1763495904915,2.22206733,141.52,141.48,18.12096]
[1763495905113,3.5261935,141.52,141.48,18.78096]
[1763495905315,2.22206733,141.53,141.49,0.66]
[1763495905812,2.82206733,141.53,141.49,0.66]
[1763495906007,2.82206733,141.53,141.48,20.34302733]
[1763495906008,0.6,141.52,141.48,18.78096]
[1763495906220,0.70412617,141.52,141.49,0.66]
[1763495906647,2.9261935,141.52,141.49,0.66]
[1763495906855,2.82206733,141.53,141.49,0.66]
[1763495907222,2.82206733,141.54,141.49,2.88206733]
[1763495907424,0.70412617,141.53,141.49,2.88206733]
[1763495907623,0.70412617,141.54,141.5,2.88206733]
[1763495908133,0.70412617,141.54,141.51,0.66]
[1763495910029,3.7261935,141.56,141.51,2.88206733]
[1763495910428,3.1261935,141.56,141.52,0.66]
[1763495910622,3.7261935,141.56,141.52,0.66]
[1763495910820,2.22206733,141.55,141.52,0.66]
[1763495911020,3.7261935,141.56,141.52,0.66]
[1763495911346,2.82206733,141.55,141.5,2.88206733]
[1763495911644,2.22206733,141.54,141.5,0.66]
[1763495911836,2.22206733,141.54,141.51,0.66]
[1763495912446,2.82206733,141.55,141.51,0.66]
[1763495912754,2.22206733,141.54,141.51,0.66]
[1763495913847,2.82206733,141.55,141.51,0.66]
[1763495914151,3.1261935,141.56,141.51,0.66]
[1763495914328,3.7261935,141.56,141.51,0.66]
[1763495915339,2.22206733,141.54,141.49,4.86]
[1763495915642,0.70412617,141.53,141.5,0.66]
[1763495915949,3.5261935,141.53,141.48,20.34302733]
[1763495916146,3.5261935,141.53,141.49,0.66]
[1763495916451,2.9261935,141.53,141.49,0.66]
[1763495917250,0.70412617,141.53,141.49,0.66]
[1763495920540,1.30412617,141.53,141.49,0.66]
[1763495921163,3.5261935,141.53,141.49,0.66]
[1763495921330,2.82206733,141.52,141.48,4.2]
[1763495921524,2.82206733,141.52,141.49,0.66]
[1763495921832,2.82206733,141.54,141.49,2.88206733]
[1763495922036,0.70412617,141.53,141.5,0.66]
[1763495923654,0.70412617,141.54,141.5,0.66]
[1763495923825,3.5261935,141.54,141.5,0.66]
[1763495925630,3.5261935,141.54,141.48,2.22206733]
[1763495925631,2.82206733,141.53,141.48,2.22206733]
[1763495925837,2.82206733,141.53,141.49,0.71]
[1763495926247,2.22206733,141.53,141.49,0.71]
[1763495926454,3.5261935,141.54,141.49,0.71]
[1763495926665,3.5261935,141.54,141.49,2.93206733]
[1763495927164,0.70412617,141.54,141.5,0.71]
[1763495927738,0.70412617,141.54,141.5,2.93206733]
[1763495928235,0.70412617,141.54,141.51,0.71]
[1763495929263,1.30412617,141.54,141.51,0.71]
[1763495929562,0.70412617,141.54,141.51,0.71]
[1763495930960,1.30412617,141.54,141.51,0.71]
[1763495931464,0.70412617,141.54,141.51,0.71]
[1763495933545,0.70412617,141.54,141.51,2.93206733]
[1763495933746,0.2,141.56,141.53,2.22206733]
[1763495934152,0.2,141.56,141.54,0.71]
[1763495934940,0.2,141.56,141.54,2.93206733]
[1763495935366,0.2,141.56,141.54,0.71]
[1763495936362,0.2,141.56,141.54,2.93206733]
[1763495936871,0.2,141.56,141.55,0.71]
[1763495939850,0.2,141.56,141.55,2.93206733]
[1763495940657,0.2,141.56,141.55,0.71]
[1763495941463,0.2,141.56,141.55,2.93206733]
[1763495942583,0.2,141.56,141.55,21.05302733]
[1763495943053,0.2,141.56,141.55,23.88558761]
[1763495943960,0.2,141.57,141.55,24.59205175]
[1763495944167,0.2,141.57,141.56,7.13206733]
[1763495944762,0.2,141.57,141.56,16.92089502]
[1763495945084,0.2,141.59,141.58,18.12096]
[1763495945255,0.2,141.59,141.58,30.13185502]
[1763495945456,0.2,141.6,141.58,29.94129665]
[1763495945758,0.2,141.62,141.61,18.12096]
[1763495945954,0.2,141.62,141.61,2.22206733]
[1763495946155,0.2,141.62,141.61,2.93206733]
[1763495948280,0.2,141.62,141.61,7.13206733]
[1763495949975,0.2,141.62,141.61,9.96322421]
[1763495950768,0.2,141.62,141.61,29.32653146]
[1763495951363,0.2,141.62,141.61,25.12653146]
[1763495951568,0.2,141.62,141.61,29.32653146]
[1763495952166,0.2,141.62,141.61,11.20557146]
[1763495953982,0.2,141.62,141.61,29.32653146]
[1763495963177,0.2,141.62,141.61,25.86211688]
[1763495963373,0.2,141.62,141.61,29.32653146]
[1763495964286,0.2,141.62,141.61,7.00557146]
[1763495964485,0.2,141.62,141.61,20.99439915]
[1763495964793,0.2,141.66,141.65,18.12096]
[1763495964974,0.2,141.66,141.65,25.78537458]
[1763495965169,0.2,141.66,141.65,26.49537458]
[1763495965587,0.2,141.66,141.65,29.32573014]
[1763495965968,0.2,141.66,141.65,39.11455783]
[1763495966801,0.2,141.67,141.65,39.11455783]
[1763495966976,0.2,141.67,141.66,4.17441458]
[1763495969189,0.2,141.67,141.66,0.71]
[1763495969405,0.2,141.67,141.66,7.66441458]
[1763495969786,0.2,141.67,141.64,3.5401553]
[1763495969978,0.2,141.67,141.66,21.58537458]
[1763495970492,0.2,141.67,141.66,3.46441458]
[1763495970694,0.2,141.67,141.66,21.58537458]
[1763495971379,0.2,141.67,141.66,18.12096]
[1763495971586,0.2,141.67,141.66,21.58537458]
[1763495971873,0.2,141.67,141.66,18.83096]
[1763495972082,0.2,141.67,141.66,22.29537458]
[1763495972581,0.2,141.67,141.66,26.49537458]
[1763495979092,0.2,141.67,141.66,29.32532965]
[1763495981299,0.2,141.67,141.66,21.66091507]
[1763495981527,0.2,141.67,141.66,25.86091507]
[1763495981690,0.2,141.67,141.66,29.32532965]
[1763495982189,0.2,141.67,141.66,26.49537458]
[1763495982391,0.2,141.67,141.66,29.32532965]
[1763495984202,0.2,141.7,141.66,43.28448749]
[1763495984403,0.2,141.7,141.69,31.37420227]
[1763495984592,0.2,141.7,141.69,35.57420227]
[1763495984903,0.2,141.7,141.69,39.0533567]
[1763495986394,0.2,141.7,141.69,34.8533567]
[1763495986598,0.2,141.7,141.69,39.0533567]
[1763495990205,0.2,141.74,141.7,10.43882769]
[1763495990385,0.2,141.74,141.71,4.2]
[1763495990588,0.2,141.74,141.73,3.46441458]
[1763495990796,0.88,141.74,141.73,7.66441458]
[1763495991690,0.2,141.74,141.73,7.66441458]
[1763495992200,0.88,141.74,141.73,7.66441458]
[1763495992592,0.2,141.74,141.73,7.66441458]
[1763495993616,0.2,141.74,141.73,3.46441458]
[1763495993795,0.88,141.74,141.7,3.46441458]
[1763495994295,0.68,141.73,141.7,3.46441458]
[1763495994896,0.68,141.73,141.71,3.46441458]
[1763495995098,0.68,141.73,141.72,3.46441458]
[1763495995314,0.2,141.74,141.72,3.46441458]
[1763495995521,0.88,141.74,141.73,3.46441458]
[1763495995687,0.88,141.74,141.72,3.46441458]
[1763495995891,0.88,141.74,141.72,7.66441458]
[1763495996118,0.88,141.74,141.73,3.46441458]
[1763496001123,0.88,141.74,141.73,7.66441458]
[1763496001336,0.2,141.74,141.73,7.66441458]
[1763496001695,0.88,141.74,141.73,7.66441458]
[1763496001899,0.88,141.74,141.71,36.24192]
[1763496002119,0.68,141.73,141.69,18.12096]
[1763496002423,0.68,141.73,141.7,7.66441458]
[1763496002724,0.68,141.73,141.69,7.66441458]
[1763496003023,0.68,141.73,141.67,7.66441458]
[1763496003201,4.14441458,141.73,141.67,7.66441458]
[1763496003396,0.68,141.73,141.69,3.46441458]
[1763496003601,0.88,141.74,141.72,3.46441458]
[1763496003814,0.68,141.73,141.72,3.46441458]
[1763496004023,0.68,141.73,141.7,21.58537458]
[1763496004519,0.68,141.73,141.7,7.66441458]
[1763496005520,0.68,141.73,141.71,3.46441458]
[1763496005728,0.68,141.73,141.72,18.12096]
[1763496006022,0.68,141.73,141.72,21.58537458]
[1763496006215,0.2,141.74,141.73,18.12096]
[1763496006525,0.2,141.74,141.73,25.78537458]
[1763496007028,0.88,141.74,141.73,7.66441458]
[1763496007227,0.88,141.74,141.73,4.2]
[1763496007520,0.88,141.74,141.73,7.66441458]
[1763496007727,0.2,141.74,141.73,7.66441458]
[1763496007926,0.88,141.74,141.73,7.66441458]
[1763496008110,0.88,141.74,141.73,4.2]
[1763496008428,0.88,141.74,141.72,3.46441458]
[1763496008827,0.88,141.74,141.73,3.46441458]
[1763496010028,0.88,141.74,141.73,4.11441458]
[1763496010029,0.2,141.74,141.73,4.11441458]
[1763496010325,0.2,141.74,141.73,3.46441458]
[1763496010527,0.2,141.74,141.73,7.66441458]
[1763496010901,0.2,141.74,141.73,6.69086569]
[1763496013121,0.2,141.74,141.73,7.38086569]
[1763496013731,0.2,141.74,141.73,3.18086569]
[1763496013900,0.2,141.74,141.73,7.38086569]
[1763496015244,0.2,141.74,141.73,3.18086569]
[1763496015403,0.2,141.74,141.73,7.38086569]
[1763496016039,0.68,141.8,141.74,0.69]
[1763496016210,0.68,141.8,141.77,2.49086569]
[1763496018807,0.2,141.81,141.79,2.49086569]
[1763496019533,0.88,141.81,141.79,2.49086569]
[1763496019732,0.88,141.81,141.78,2.49086569]
[1763496020123,0.68,141.8,141.78,2.49086569]
[1763496020512,0.68,141.8,141.77,2.49086569]
[1763496020811,0.68,141.8,141.75,4.2]
[1763496021013,0.68,141.8,141.76,2.49086569]
[1763496021532,0.68,141.8,141.78,2.49086569]
[1763496021733,0.2,141.81,141.77,0.69]
[1763496022308,0.2,141.81,141.78,18.12096]
[1763496022508,0.2,141.81,141.78,23.01096]
[1763496022727,0.89,141.81,141.78,23.01096]
[1763496022923,0.89,141.81,141.78,4.89]
[1763496024033,0.2,141.81,141.78,22.32096]
[1763496024235,0.2,141.81,141.8,2.49086569]
[1763496025164,0.89,141.81,141.78,4.2]
[1763496025321,0.89,141.81,141.75,18.12096]
[1763496025524,0.69,141.8,141.77,2.49086569]
[1763496026337,0.2,141.81,141.79,2.49086569]
[1763496026540,0.89,141.81,141.79,2.49086569]
[1763496026919,0.69,141.8,141.78,2.49086569]
[1763496027520,0.2,141.81,141.79,2.49086569]
[1763496027724,0.2,141.81,141.8,2.49086569]
[1763496027922,0.2,141.81,141.79,2.49086569]
[1763496028432,0.2,141.81,141.8,2.49086569]
[1763496028632,0.2,141.81,141.79,0.69]
[1763496028836,0.2,141.81,141.78,23.01096]
[1763496029346,0.2,141.81,141.79,0.69]